Cogmind - Beta 11 X8 @@@ ROGUE MODE // 2021.10.21 @ 22:42:48 Player: Nalzok Result: Destroyed by P-60 Hacker with Shock Rifle Performance ------------- Evolutions (3) 1500 Regions Visited (8) 1600 Robots Destroyed (86) 430 Value Destroyed (2306) 2306 Prototype IDs (28) 560 Alien Tech Used (0) 0 Bonus (484) 484 TOTAL SCORE: 6880 Bonus ------- High Alert Combat Kills 46 Follower Combat Kills 138 Aligned with FarCom 300 Cogmind --------- Core Integrity 0/700 Matter 197/300 Energy 99/100 System Corruption 4% Temperature Cool (0) Movement Core (50) Location -7/Factory Parts ------- > --- POWER (1) -------- (None) > --- PROPULSION (4) --- (None) > --- UTILITY (6) ------ (None) > --- WEAPON (2) ------- Spear > --- INVENTORY (5) ---- YOLO Cannon Greatsword Spear Peak State ------------ > --- POWER ------------ Light Deuterium Engine > --- PROPULSION ------- Light Treads Improved Treads Improved Treads Improved Treads > --- UTILITY ---------- Humpback Weight Redist. System Advanced Visual Processing Unit Improved Light Armor Plating Dynamic Insulation System > --- WEAPON ----------- High-powered Electrolaser High-powered Electrolaser > --- INVENTORY -------- Nuclear Core Enhanced Nuclear Core Improved Treads Humpback Humpback Trap Scanner Improved Terrain Scanner Improved Terrain Scanner Advanced ECM Suite Advanced ECM Suite Light Armor Plating Hardened Heavy Armor Plating Hardened Heavy Armor Plating Hardened Heavy Armor Plating Layered Light Armor Plating Layered Light Armor Plating Layered Light Armor Plating Hacking Suite High-powered Electrolaser YOLO Cannon Heavy Rocket Launcher Remote Datajack Remote Datajack Remote Datajack Remote Datajack Great Maul Katana Spear Spear [Rating: 47] Favorites ----------- Power Light Ion Engine Engine Light Ion Engine Power Core Light Nuclear Core Propulsion Improved Treads Treads Improved Treads Leg Titanium Leg Wheel Wheel Utility Humpback Device Improved Heat Sink Storage Humpback Processor Advanced Visual Processing Unit Protection Hardened Light Armor Plating Weapon Light Assault Rifle Energy Gun High-powered Electrolaser Ballistic Gun Light Assault Rifle Ballistic Cannon Light Cannon Launcher Heavy Rocket Launcher Special Weapon Mining Laser Impact Weapon Great Maul Piercing Weapon Spear Build | -11 -10 -10 -9 -9 -9 -8 -8 -7 ------- Run | Scr Mat Min Mat Min Exi Min Mat Fac Slots Evolved 6 | . . . 2 . . . 2 2 Power . | . . . . . . . . . Propulsion 2 | . . . . . . . 2 . Utility 4 | . . . 2 . . . . 2 Weapon . | . . . . . . . . . Parts Attached 96 | . 3 3 11 14 5 4 41 15 Power 15 | . . 1 1 1 . 2 9 1 Engine 10 | . . 1 1 1 . 2 4 1 Core 5 | . . . . . . . 5 . Reactor . | . . . . . . . . . Propulsion 30 | . . 2 3 2 . 2 18 3 Treads 12 | . . . . . . . 9 3 Leg 11 | . . 2 3 2 . . 4 . Wheel 7 | . . . . . . 2 5 . Hover . | . . . . . . . . . Flight . | . . . . . . . . . Utility 18 | . 1 . 2 2 2 . 6 5 Device 8 | . . . 2 1 . . 2 3 Storage 3 | . . . . . 1 . 1 1 Processor 1 | . . . . . . . 1 . Hackware . | . . . . . . . . . Protection 6 | . 1 . . 1 1 . 2 1 Artifact . | . . . . . . . . . Weapon 33 | . 2 . 5 9 3 . 8 6 Energy Gun 6 | . . . . . . . 3 3 Energy Cannon . | . . . . . . . . . Ballistic Gun 14 | . 2 . 3 6 3 . . . Ballistic Cannon 3 | . . . 1 . . . 2 . Launcher 7 | . . . . 2 . . 3 2 Special Weapon 1 | . . . . 1 . . . . Impact Weapon 1 | . . . 1 . . . . . Slashing Weapon . | . . . . . . . . . Piercing Weapon 1 | . . . . . . . . 1 Special Melee Weapon . | . . . . . . . . . Unidentified Prototypes 3 | . . . . . . . 1 2 Parts Lost 29 | . . . . 1 . . 23 5 Power 6 | . . . . . . . 6 . Propulsion 12 | . . . . . . . 10 2 Utility 5 | . . . . 1 . . 3 1 Weapon 6 | . . . . . . . 4 2 Highest Loss Streak 7 | . . . . 1 . . 7 4 Average Slot Usage (%) 88 | . 87 100 81 98 93 88 84 84 Engine 8 | . 14 14 11 11 11 11 5 6 Core 1 | . . . . . . . 2 . Treads 9 | . . . . . . . 11 29 Leg 13 | . 28 28 19 21 22 7 12 . Wheel 4 | . . . . . . 14 7 . Device 9 | . . . 10 21 16 11 8 10 Storage 9 | . 14 14 11 11 11 11 9 6 Processor 2 | . . . . . . . 3 6 Protection 8 | . 2 14 11 11 10 11 6 6 Energy Gun 3 | . . . . . . . 3 13 Ballistic Gun 10 | . 28 28 15 17 18 22 2 . Ballistic Cannon 2 | . . . 1 4 . . 4 . Launcher 2 | . . . . . . . 6 1 Naked Turns . | . . . . . . . . . Heaviest Build 227 | 10 11 13 17 19 213 213 219 227 Greatest Support 98 | 20 20 27 27 30 30 30 89 98 Greatest Overweight (x) 21 | . . . 1 . 7 21 10 2 Average Overweight (x) 2 | . . . . . 1 8 4 1 Largest Inventory Capacity 35 | 8 8 8 8 8 35 35 35 35 Average Capacity 27 | 8 8 8 8 8 20 35 34 34 Most Carried 35 | 5 8 8 8 8 12 22 35 35 Average Carried 22 | 5 6 7 7 7 9 17 31 31 Final Capacity 35 | 8 8 8 8 8 35 35 35 5 Final Carried 34 | 4 8 8 7 8 12 22 34 5 Class Distribution -------------------- 73% | Hauler-Mutant 17% | Scavenger-Mutant 8% | Mutant Dominant Class ---------------- Mutant | -10/Materials Scavenger-Mutant | -10/Mines Scavenger-Mutant | -9/Materials Scavenger-Mutant | -9/Mines Hauler-Mutant | -9/Exiles Hauler-Mutant | -8/Mines Hauler-Mutant | -8/Materials Hauler-Mutant | -7/Factory Resources | -11 -10 -10 -9 -9 -9 -8 -8 -7 ----------- Run | Scr Mat Min Mat Min Exi Min Mat Fac Matter Collected 1817 | 156 25 119 44 272 . 153 848 200 Remotely . | . . . . . . . . . Salvage Created 2325 | . 86 56 . 158 . 305 1364 356 Parts 159 | . 10 10 . 12 . 19 81 27 Haulers Intercepted 1 | . . . . . . . 1 . Recyclers Shooed 3 | . 1 1 . . . 1 . . Parts Field Recycled . | . . . . . . . . . Retrieved Matter . | . . . . . . . . . Parts Self-Destructed . | . . . . . . . . . Prevented . | . . . . . . . . . Kills | -11 -10 -10 -9 -9 -9 -8 -8 -7 ------- Run | Scr Mat Min Mat Min Exi Min Mat Fac Combat Hostiles Destroyed 59 | . 4 . . 12 . . 32 11 Guns 29 | . 4 . . 4 . . 16 5 Cannons 5 | . . . . . . . 5 . AOE 24 | . . . . 8 . . 10 6 Classes Destroyed 17 | . 2 3 . 2 . 1 5 4 Worker 7 | . . 1 . 1 . 1 4 . Builder 7 | . . 1 . . . 2 3 1 Tunneler 6 | . . 1 . . . 3 2 . Hauler 1 | . . . . . . . 1 . Recycler 4 | . . . . . . 2 2 . Mechanic 1 | . . . . . . . . 1 Operator 1 | . . . . . . . 1 . Watcher 1 | . . . . . . . 1 . Swarmer 22 | . 3 . . 10 . . 6 3 Grunt 20 | . 1 . . . . . 16 3 Duelist 2 | . . . . 1 . . 1 . Protector 1 | . . . . . . . . 1 Sentry 6 | . . . . . . . 5 1 Specialist 4 | . . . . . . . 4 . Hunter 1 | . . . . . . . . 1 Programmer 2 | . . . . . . . . 2 Assembled 1 | . . . . 1 . . . . Best Kill Streak 9 | . 4 2 . 5 . 4 9 4 Combat Bots Only 6 | . 4 . . 5 . . 6 3 Max Kills in Single Turn 4 | . 1 1 . 4 . 2 3 3 Gunslinging . | . . . . . . . . . Exploded 4 | . . . . 4 . . 2 3 Melee . | . . . . . . . . . Uniques/NPCs Destroyed . | . . . . . . . . . Combat | -11 -10 -10 -9 -9 -9 -8 -8 -7 -------- Run | Scr Mat Min Mat Min Exi Min Mat Fac Damage Taken 6022 | . 187 . 18 412 . . 3342 2063 Core 1210 | . 69 . . 6 . . 428 707 Absorbed by Shields . | . . . . . . . . . Core Remaining (%) 73 | 100 . 72 . . . 98 22 . Volleys Fired 273 | . 13 7 2 27 . 27 152 45 Largest 2 | . 2 2 2 2 . 2 2 2 Hottest 140 | . 40 40 40 100 . 40 140 140 Shots Fired 416 | . 26 14 4 44 . 54 209 65 Gun 321 | . 26 14 4 35 . 54 131 57 Cannon 58 | . . . . 2 . . 56 . Launcher 33 | . . . . 3 . . 22 8 Special 4 | . . . . 4 . . . . Kinetic 257 | . 26 14 4 37 . 54 122 . Thermal 126 | . . . . 4 . . 65 57 Explosive 33 | . . . . 3 . . 22 8 Electromagnetic . | . . . . . . . . . Robot Hit Streak 13 | . 4 4 2 5 . 8 13 9 Robot Miss Streak 6 | . 3 2 2 6 . 2 4 6 Penetration Max . | . . . . . . . . . Secondary Targets 3 | . 2 . . 1 . . . . Max Gunslinging Chain 1 | . 1 . . 1 . . . . Shots Hit Robots 257 | . 16 7 2 20 . 39 137 36 Core Hits 185 | . 9 6 . 23 . 18 95 34 Critical Kills . | . . . . . . . . . Critical Parts Destroyed . | . . . . . . . . . Critical Strikes 9 | . . . . . . . 8 1 Burn 6 | . . . . . . . 5 1 Blast 3 | . . . . . . . 3 . Melee Attacks 1 | . . . 1 . . . . . Impact 1 | . . . 1 . . . . . Slashing . | . . . . . . . . . Piercing . | . . . . . . . . . Sneak Attacks . | . . . . . . . . . Combat Hostiles . | . . . . . . . . . Follow-up Attacks . | . . . . . . . . . Damage Inflicted 7384 | . 124 53 17 542 . 312 4101 2235 Guns 3101 | . 124 53 17 153 . 312 1652 790 Cannons 595 | . . . . . . . 595 . Explosions 3688 | . . . . 389 . . 1854 1445 Melee . | . . . . . . . . . Ramming . | . . . . . . . . . Kinetic 1651 | . 124 53 17 153 . 312 992 . Thermal 2045 | . . . . . . . 1255 790 Explosive 3688 | . . . . 389 . . 1854 1445 Electromagnetic . | . . . . . . . . . Impact . | . . . . . . . . . Slashing . | . . . . . . . . . Piercing . | . . . . . . . . . Highest Corruption 4 | . . . . . . . . 4 Average Corruption 2 | . . . . . . . . 2 Corruption Purged . | . . . . . . . . . Effects 6 | . . . . . . . . 6 Message Errors 3 | . . . . . . . . 3 Heat Flow Errors 1 | . . . . . . . . 1 Data Loss (minor) 2 | . . . . . . . . 2 Overload Shots 1 | . . . . . . . . 1 Effects 1 | . . . . . . . . 1 Short Circuit 1 | . . . . . . . . 1 Overflow Damage 201 | . . . . 18 . . 111 72 Projectiles 2 | . . . . . . . 2 . Explosions 199 | . . . . 18 . . 109 72 Melee . | . . . . . . . . . Knockbacks 5 | . . . . . . . 5 . Impact . | . . . . . . . . . Kinetic 5 | . . . . . . . 5 . Secondary . | . . . . . . . . . Self-Inflicted Damage 203 | . . . . 19 . . 184 . Shots 5 | . . . . 1 . . 4 . Rammed . | . . . . . . . . . Targets Rammed . | . . . . . . . . . Kicked . | . . . . . . . . . Crushed . | . . . . . . . . . Highest Temperature 460 | . 6 . 6 . . . 460 396 Average Temperature 117 | . 6 . 6 . . . 111 171 Received Heat Transfer 1284 | . 30 . 9 6 . . 1089 150 Effects 6 | . . . . . . . 2 4 Shutdowns 1 | . . . . . . . . 1 Energy Bleed 1 | . . . . . . . 1 . Interference 2 | . . . . . . . . 2 Matter Decay 1 | . . . . . . . . 1 Damage (minor) 1 | . . . . . . . 1 . Siege Activations . | . . . . . . . . . Robots Corrupted . | . . . . . . . . . Combat Hostiles . | . . . . . . . . . Parts Fried . | . . . . . . . . . Impact Corruptions . | . . . . . . . . . Robots Melted 1 | . . . . . . . 1 . Combat Hostiles 1 | . . . . . . . 1 . Parts Melted 7 | . . . . 1 . . 5 1 Heat Transferred 3515 | . . . . . . . 2257 1258 Parts Sabotaged . | . . . . . . . . . Parts Stolen . | . . . . . . . . . Parts Stripped . | . . . . . . . . . Power Chain Reactions . | . . . . . . . . . Missiles Intercepted . | . . . . . . . . . Alert | -11 -10 -10 -9 -9 -9 -8 -8 -7 ------- Run | Scr Mat Min Mat Min Exi Min Mat Fac Peak Influence 467 | . 129 89 76 467 . 25 425 321 Initial 176 | . . 49 3 29 . . . 176 Average 181 | . 93 42 45 250 . 12 273 160 Maximum Alert Level 2 | . . . . 2 . . 2 1 Low Security (%) 52 | 100 100 100 100 37 . 100 14 75 Level 1 42 | . . . . 42 . . 78 24 Level 2 4 | . . . . 19 . . 6 . Level 3 . | . . . . . . . . . Level 4 . | . . . . . . . . . Level 5 . | . . . . . . . . . High Security . | . . . . . . . . . Max Security . | . . . . . . . . . Squads Dispatched 10 | . 1 1 1 . . . 5 2 Investigation 1 | . . 1 . . . . . . Extermination 1 | . . . . . . . . 1 Reinforcement 8 | . 1 . 1 . . . 5 1 Assault . | . . . . . . . . . Garrison . | . . . . . . . . . Intercept . | . . . . . . . . . Construction Impeded 2 | . . . . . . . 1 1 Haulers Reinforced . | . . . . . . . . . Active Scanning Responses . | . . . . . . . . . Cargo Convoy Interrupts 1 | . . . . . . . . 1 Stealth | -11 -10 -10 -9 -9 -9 -8 -8 -7 --------- Run | Scr Mat Min Mat Min Exi Min Mat Fac Distress Signals 5 | . . . . . . . 5 . Communications Jammed . | . . . . . . . . . Distress Signals . | . . . . . . . . . Times Spotted 109 | . 5 1 4 17 . . 61 21 Peak Tracking Total 10 | . 4 1 3 7 . . 7 10 Tactical Retreats . | . . . . . . . . . Traps | -11 -10 -10 -9 -9 -9 -8 -8 -7 ------- Run | Scr Mat Min Mat Min Exi Min Mat Fac Traps Triggered 3 | . . . 2 . . . 1 . Indirectly . | . . . . . . . . . Trap Hack Attempts . | . . . . . . . . . Triggered . | . . . . . . . . . Disarmed . | . . . . . . . . . Reprogrammed . | . . . . . . . . . Reused . | . . . . . . . . . Traps Extracted . | . . . . . . . . . Installed . | . . . . . . . . . Triggered . | . . . . . . . . . Machines | -11 -10 -10 -9 -9 -9 -8 -8 -7 ---------- Run | Scr Mat Min Mat Min Exi Min Mat Fac Machines Disabled 9 | . . . . 1 . . 7 1 Max in Single Turn 1 | . . . . 1 . . 1 1 Machines Sabotaged . | . . . . . . . . . Garrisons Compromised . | . . . . . . . . . Overloaded Fab Kills . | . . . . . . . . . Hacking | -11 -10 -10 -9 -9 -9 -8 -8 -7 --------- Run | Scr Mat Min Mat Min Exi Min Mat Fac Machines Accessed 9 | . 3 1 . . 2 . 2 1 Terminals 6 | . 3 . . . . . 2 1 Fabricators . | . . . . . . . . . Repair Stations . | . . . . . . . . . Recycling Units . | . . . . . . . . . Scanalyzers . | . . . . . . . . . Garrison Access . | . . . . . . . . . Total Hacks 26 | . 10 1 . . 5 . 9 1 Successful 17 | . 6 1 . . 5 . 4 1 Failed 9 | . 4 . . . . . 5 . Catastrophic . | . . . . . . . . . Database Lockouts . | . . . . . . . . . Manual 16 | . 7 . . . 1 . 8 . Terminals 20 | . 10 . . . . . 9 1 Fabricators . | . . . . . . . . . Repair Stations . | . . . . . . . . . Recycling Units . | . . . . . . . . . Scanalyzers . | . . . . . . . . . Garrison Access . | . . . . . . . . . Terminal Hacks 12 | . 3 1 . . 5 . 2 1 Record 4 | . . . . . 4 . . . Prototype ID Bank 1 | . 1 . . . . . . . Open Door 1 | . . 1 . . . . . . Branch Access Points 3 | . 1 . . . . . 1 1 Emergency Access Points 1 | . . . . . . . 1 . Security Status 1 | . 1 . . . . . . . EX-Prototype ID Bank 1 | . . . . . 1 . . . Fabricator Hacks . | . . . . . . . . . Repair Station Hacks . | . . . . . . . . . Recycling Unit Hacks . | . . . . . . . . . Scanalyzer . | . . . . . . . . . Garrison Access Hacks . | . . . . . . . . . Unauthorized Hacks 5 | . 3 . . . . . 2 . Terminals 5 | . 3 . . . . . 2 . Botnet 3 | . 2 . . . . . 1 . Operators 2 | . 1 . . . . . 1 . Fabricators . | . . . . . . . . . Repair Stations . | . . . . . . . . . Recycling Units . | . . . . . . . . . Scanalyzers . | . . . . . . . . . Garrison Access . | . . . . . . . . . Data Cores Recovered . | . . . . . . . . . Used . | . . . . . . . . . Hacking Detections 6 | . 3 . . . . . 2 1 Full Trace Events . | . . . . . . . . . Feedback Events . | . . . . . . . . . Feedback Blocked . | . . . . . . . . . Robot Schematics Acquired . | . . . . . . . . . Robots Built . | . . . . . . . . . Authchips . | . . . . . . . . . Time . | . . . . . . . . . Total Robot Build Rating . | . . . . . . . . . Part Schematics Acquired . | . . . . . . . . . Parts Built . | . . . . . . . . . Authchips . | . . . . . . . . . Time . | . . . . . . . . . Total Part Build Rating . | . . . . . . . . . Parts Repaired . | . . . . . . . . . Time . | . . . . . . . . . Parts Recycled . | . . . . . . . . . Recycled Matter . | . . . . . . . . . Retrieved Matter . | . . . . . . . . . Retrieved Components . | . . . . . . . . . Parts Scanalyzed . | . . . . . . . . . Part Schematics Acquired . | . . . . . . . . . Parts Damaged . | . . . . . . . . . Bothacking | -11 -10 -10 -9 -9 -9 -8 -8 -7 ------------ Run | Scr Mat Min Mat Min Exi Min Mat Fac Used RIF Installer . | . . . . . . . . . Robots Hacked . | . . . . . . . . . Non-combat . | . . . . . . . . . Combat . | . . . . . . . . . Robot Hacks Applied . | . . . . . . . . . Relay Couplers Released . | . . . . . . . . . Robots Rewired . | . . . . . . . . . Allies Hacked . | . . . . . . . . . Hacks Repelled . | . . . . . . . . . Allies | -11 -10 -10 -9 -9 -9 -8 -8 -7 -------- Run | Scr Mat Min Mat Min Exi Min Mat Fac Total Allies 4 | . . 3 . 1 . . . . Largest Group 4 | . . 3 3 4 . . . . Highest-Rated Group 71 | . . 40 40 71 . . . . Highest-Rated Ally 31 | . . 16 16 31 . . . . Total Orders . | . . . . . . . . . Ally Attacks 30 | . . 4 10 16 . . . . Total Damage 350 | . . 58 114 178 . . . . Kills 9 | . . 1 2 6 . . . . Allies Corrupted . | . . . . . . . . . Allies Melted . | . . . . . . . . . Intel | -11 -10 -10 -9 -9 -9 -8 -8 -7 ------- Run | Scr Mat Min Mat Min Exi Min Mat Fac Robot Analysis Total . | . . . . . . . . . Derelict Logs Recovered 4 | . . 3 . 1 . . . . Drone Launches . | . . . . . . . . . Drone Recoveries . | . . . . . . . . . Exploration | -11 -10 -10 -9 -9 -9 -8 -8 -7 ------------- Run | Scr Mat Min Mat Min Exi Min Mat Fac Turns Passed 7259 | 1 264 646 124 615 490 959 2973 1187 Spaces Moved 2686 | 1 156 501 79 417 238 322 642 330 Core 17 | . . . . . . . . 17 Treads 533 | . . . . . . . 220 313 Legs 1639 | 1 156 501 79 417 238 44 203 . Wheels 497 | . . . . . . 278 219 . Hover . | . . . . . . . . . Flight . | . . . . . . . . . Fastest Speed 50 | 120 120 120 125 125 125 210 123 50 Average Speed 226 | 120 120 122 126 125 201 268 358 303 Slowest Speed 960 | 120 120 125 190 130 615 615 960 320 Overloaded Moves . | . . . . . . . . . Propulsion Burnouts . | . . . . . . . . . Robots Hopped . | . . . . . . . . . Cave-ins Triggered . | . . . . . . . . . Exploration Rate (%) 47 | 2 39 95 12 79 61 68 59 8 Regions Visited 8 Branch Regions 4 Pre-discovered Areas 4 | . . 2 . 1 1 . . . Known Exits Taken 1 | . 1 . . . . . . . Unknown Exits Taken 7 | 1 . 1 1 1 1 1 1 . Scrap Searched 4 | . . 1 . 2 . 1 . . Spaces Dug 21 | . . . 1 2 . . . 18 Terrain Destroyed 291 | . . . 1 38 . . 161 91 Melee 1 | . . . 1 . . . . . Projectile 12 | . . . . 3 . . 9 . AOE 278 | . . . . 35 . . 152 91 Terrain Rammed . | . . . . . . . . . Walls Destroyed . | . . . . . . . . . Machines Disabled . | . . . . . . . . . Actions | -11 -10 -10 -9 -9 -9 -8 -8 -7 --------- Run | Scr Mat Min Mat Min Exi Min Mat Fac Total 3486 | 2 211 527 94 464 256 372 1112 448 Wait 267 | . 36 . . . . 9 211 11 Move 2678 | . 155 500 78 416 237 321 641 330 Hop . | . . . . . . . . . Pick Up 109 | . 3 7 . 1 4 8 51 35 Fast Attach 40 | . 1 . 6 3 3 2 17 8 Attach 18 | . . . 1 . . . 16 1 Detach 5 | . . . . . 1 1 3 . Swap 38 | . 2 3 4 11 2 2 8 6 Drop 57 | 2 1 10 2 6 9 2 13 12 Fire 273 | . 13 7 2 27 . 27 152 45 Melee 1 | . . . 1 . . . . . Ram . | . . . . . . . . . Kick . | . . . . . . . . . Crush . | . . . . . . . . . Escape Stasis . | . . . . . . . . . Rewire . | . . . . . . . . . Trap . | . . . . . . . . . Miscellaneous . | . . . . . . . . . Route ------- -11/Scrapyard -10/Materials (discovered 2 exits: *Min x2) -10/Mines (discovered 2 exits: [*Mat x2]) -9/Materials -9/Mines (discovered 2 exits: *Mat / *Exi) -9/Exiles (discovered 2 exits: [*Min x2]) -8/Mines (discovered 2 exits: *Mat x2) -8/Materials -7/Factory (discovered 2 exits: Low x2) History --------- Turn | Location | Event 2 | -11/Scrapyard | Discovered new exit (range 0) 2 | -11/Scrapyard | Entered Materials 25 | -10/Materials | Identified exit to Mines 266 | -10/Materials | Entered Mines 267 | -10/Mines | Learned location of Storage (-9) 315 | -10/Mines | Build established: Mutant 317 | -10/Mines | Learned location of Zion (-6) 342 | -10/Mines | Learned Materials security intel 447 | -10/Mines | Assisted by bots powering up and referring to "LRC-V3" 496 | -10/Mines | Discovered new exit (range 9) 528 | -10/Mines | Met a Derelict shopkeep closing up shop 535 | -10/Mines | Learned Materials stockpile data 862 | -10/Mines | Discovered new exit (range 12) 876 | -10/Mines | Build established: Scavenger-Mutant 877 | -10/Mines | Received a Rocket Launcher from a helpful Derelict 912 | -10/Mines | Entered Materials 912 | -9/Materials | Accompanied by 3 allies 912 | -9/Materials | Evolved 2 slots: Utility x2 997 | -9/Materials | Discovered new exit (range 6) 1036 | -9/Materials | Entered Mines 1036 | -9/Mines | Accompanied by 3 allies 1039 | -9/Mines | Received a Mining Laser from a helpful Derelict 1107 | -9/Mines | Discovered new exit (range 15) 1487 | -9/Mines | Deemed a non-threat by the Exiles lab entrance 1487 | -9/Mines | Discovered new exit (range 5) 1617 | -9/Mines | Excavation squad dispatched 1617 | -9/Mines | A large section of the Mines collapsed 1651 | -9/Mines | Entered Exiles 1668 | -9/Exiles | Discovered new exit (range 15) 1685 | -9/Exiles | Met 8R-AWN 1703 | -9/Exiles | Met EX-HEX 1738 | -9/Exiles | Met EX-BIN 1755 | -9/Exiles | Aligned with FarCom system 1756 | -9/Exiles | Given EX-Vault access code 1785 | -9/Exiles | Opened EX-Vault 1794 | -9/Exiles | Found YOLO Cannon 1831 | -9/Exiles | Warned to stay clear of 0b10 Research branches 1867 | -9/Exiles | Met EX-DEC 2061 | -9/Exiles | Discovered new exit (range 15) 2141 | -9/Exiles | Left Exiles lab with YOLO Cannon 2141 | -9/Exiles | Entered Mines 2190 | -8/Mines | Build established: Hauler-Mutant 2986 | -8/Mines | Discovered new exit (range 13) 3037 | -8/Mines | Discovered new exit (range 9) 3100 | -8/Mines | Entered Materials 3100 | -8/Materials | Evolved 2 slots: Propulsion x2 3394 | -8/Materials | Lost 4 parts (2n1u1w) 3687 | -8/Materials | Lost 5 parts (1p3n1w) 3813 | -8/Materials | Core integrity fell below 50% 5228 | -8/Materials | Lost 7 parts (2p3n1u1w) 5859 | -8/Materials | Discovered new exit (range 19) 6054 | -8/Materials | Lost 3 parts (1p1u1w) 6073 | -8/Materials | Entered Factory 6073 | -7/Factory | Evolved 2 slots: Utility x2 6588 | -7/Factory | Identified exit to Lower Caves 7240 | -7/Factory | Cargo convoy interrupted 7248 | -7/Factory | Released all parts (8) 7253 | -7/Factory | Core integrity fell below 50% 7255 | -7/Factory | Core integrity fell below 20% 7260 | -7/Factory | Destroyed by P-60 Hacker with Shock Rifle Last Messages --------------- 07248_ Released Humpback. 07248_ Released Cld. Deuterium Engine. 07248_ Released Cooling System. 07248_ Released Imp. Treads. 07248_ Released Imp. Light Armor Plating. 07248_ Released Adv. Visual Processing Unit. 07248_ Released Imp. Treads. 07248_ Acquired Spear. 07249_ Penetrated by Slug. 07250_ Dropped Hrd. Heavy Armor Plating. 07250_ Chain reaction triggered in Deuterium Engine. 07251_ Acquired Spear. 07251_ Slug penetrates Wall. 07252_ Nuclear Reactor explodes. 07252_ Slug penetrates Earth. 07252_ Penetrated by Slug. 07255_ Acquired YOLO Cannon. 07255_ Penetrated by Slug. 07257_ M-28 Smith fits Backup Power III on A-27 Freighter. 07257_ Slug penetrates Wall. Map ----- +----------------------------------------------------+ | ??????????????# """"" # # #????????? | | ??????????????# """"" + ###########????????? | | ??????????????# [ # #??????????????????? | | ??????????????# [! # #??????????????????? | | ??????????????# # ??????????????????? | | ??????????????# # ??????????????????? | | ??????????????########## ??????????????????? | | ??????????????????????# "" ??????????????????? | | ?????????????????????## %%"#?????????????????? | | ????????????????????## %| ###?#######??????? | | ????????????????????# # p ### ######?? | | ?????????????????????# hhh #?? | | ?????????????????????# [% ??? | | ?????????????????????# =%h """ ??? | | ?????????????????????# =! """ #?? | | ?????????????????????# h ! / / """ #?? | | ??????????????????????# ![||[ #?? | | ??????????????????????# # *!=! #?? | | ??????????????????????## # ;pm |!*! ! #?? | | ??????????????????#############; !| ####?? | | ??????????????????# !![ # *!# ###????? | | ??????????????????# ![! # # ####??????? | | ??????????????????# ![! # ###?????????? | | ??????????????????# #A #???????????? | | ??????????????????# # #???????????? | | ??????????????????# @ # #???????????? | | ??????????????????# # ???????????? | | ??????????????????# # ??????????? | | ??????????????????# # """ "?????????? | | ??????????????????# # """ ""????????? | | ??????????????????# # """ ""????????? | | ??????????????????# # ???????????? | | ??????????????????########+##### "?????????????? | | ???????????g?????gg???????????? ??????????????? | | ????????????????g?????????????? ??????????????? | | ???????????????????????????????? ???????????????? | | ?????????????????????????????????????????????????? | | ?????????????????????????????????????????????????? | | ?????????????????????????????????????????????????? | | ?????????????????????????????????????????????????? | | ?????????????????????????????????????????????????? | | ?????????????????????????????????????????????????? | | ?????????????????????????????????????????????????? | | ?????????????????????????????????????????????????? | | ?????????????????????????????????????????????????? | | ?????????????????????????????????????????????????? | | ?????????????????????????????????????????????????? | | ?????????????????????????????????????????????????? | | ?????????????????????????????????????????????????? | | ?????????????????????????????????????????????????? | +----------------------------------------------------+ Best States ------------- Heat Dissipation 56 Energy Generation 18 Energy Capacity 310 Matter Stores 300 Matter Capacity 300 Sight Range 20 Terrain Scan Density 10 Additional Mass Support 6 EM Shielding 2 Armor Coverage 150 Weapon Shielding 33 Evasion (%) 55 Recoil Reduction 4 Item Schematics ----------------- None Robot Schematics ------------------ None Fabricated ------------ Nothing Alien Tech Used ----------------- None Achievements -------------- None Challenges ------------ None Game ------ Seed GuidanceArcPick Manual? 0 Play Time 00:34:55 Cumulative 328.2 hours Start 2021.10.21 @ 22:08:45 End 2021.10.21 @ 22:42:48 Sessions 1 Manual Loads 0 Difficulty Rogue Special Mode None Game No. 465 Rogue 464 Adventurer 0 Explorer 1 Win Type - Total 2 Types 2/0/0/0/0/0/0/0/0 Lore% 68 Gallery% 81 Achievement% 60 Wizard Run 0 Options --------- ASCII 1 Keyboard 1 Movement Vi Keybinds 0 Fullscreen 2 Font 12/Smallcaps Map View 76x56 Tactical HUD 1 Map Filters NONE Filters LOW_CONTRAST(13,24,33) Steam 0 RUN: df3f7256-150c-4531-97a5-1b33cad35778